Cogmind - Beta 15 @@@ ROGUE MODE // 2025.07.31 @ 15:41:06 Player: Inverisimilidude Result: Destroyed by G-34 Mercenary with Small Laser Performance ------------- Evolutions (0) 0 Regions Visited (2) 400 Robots Destroyed (35) 175 Value Destroyed (927) 927 Prototype IDs (1) 20 Alien Tech Used (0) 0 Bonus (0) 0 TOTAL SCORE: 1522 Bonus ------- None Cogmind --------- Core Integrity 0/250 Matter 288/300 Energy 250/250 System Corruption 0% Temperature Cool (14) Movement Rolling (115) Ox1 Location -10/Mines Parts ------- > --- POWER (1) -------- Ion Engine > --- PROPULSION (2) --- Compact Wheel > --- UTILITY (2) ------ Large Storage Unit Light Armor Plating > --- WEAPON (2) ------- Light Assault Rifle Light Assault Rifle > --- INVENTORY (15) --- Light Ion Engine Light Nuclear Core Large Matter Pod (150) Sensor Array Experimental Sensor Array Signal Interpreter Seismic Detector Medium Laser Small Laser Small Laser Light Assault Rifle Light Assault Rifle Mining Laser Peak State ------------ > --- POWER ------------ Ion Engine > --- PROPULSION ------- Compact Wheel Compact Wheel > --- UTILITY ---------- Large Storage Unit Experimental Sensor Array > --- WEAPON ----------- Light Assault Rifle Light Assault Rifle > --- INVENTORY -------- Light Ion Engine Light Nuclear Core Large Matter Pod Sensor Array Signal Interpreter Seismic Detector Light Armor Plating Light Armor Plating Medium Laser Small Laser Small Laser Light Assault Rifle Light Assault Rifle Mining Laser [Rating: 16] Favorites ----------- Power Ion Engine Engine Ion Engine Propulsion Compact Wheel Leg Aluminum Leg Wheel Compact Wheel Utility Large Storage Unit Device Seismic Detector Storage Large Storage Unit Protection Light Armor Plating Weapon Light Assault Rifle Energy Gun EM Pulse Gun Ballistic Gun Light Assault Rifle Special Weapon Mining Laser Build | -11 -10 -10 ------- Run | Yrd Mat Min Slots Evolved . | . . . Power . | . . . Propulsion . | . . . Utility . | . . . Weapon . | . . . Parts Attached 25 | 7 12 6 Power 2 | 1 1 . Engine 2 | 1 1 . Core . | . . . Reactor . | . . . Propulsion 8 | 2 4 2 Treads . | . . . Leg 1 | . 1 . Wheel 7 | 2 3 2 Hover . | . . . Flight . | . . . Utility 7 | 2 3 2 Device 3 | 1 1 1 Storage 2 | 1 1 . Processor . | . . . Hackware . | . . . Protection 2 | . 1 1 Artifact . | . . . Weapon 8 | 2 4 2 Energy Gun 3 | . 2 1 Energy Cannon . | . . . Ballistic Gun 4 | 2 1 1 Ballistic Cannon . | . . . Launcher . | . . . Special Weapon 1 | . 1 . Impact Weapon . | . . . Slashing Weapon . | . . . Piercing Weapon . | . . . Special Melee Weapon . | . . . Unidentified Prototypes 1 | . . 1 Parts Lost 10 | . 6 4 Power 1 | . 1 . Propulsion 5 | . 2 3 Utility 1 | . . 1 Weapon 3 | . 3 . Highest Loss Streak 2 | . 2 2 To Critical Strikes . | . . . Average Backups 10 | 2 7 13 Power 1 | . 1 1 Propulsion 1 | 1 2 . Utility 3 | . 1 5 Weapon 3 | . 1 5 Tool/Special . | . . . Unused Backups 12 | . 5 7 Power 2 | . . 2 Propulsion 3 | . 3 . Utility 4 | . 2 2 Weapon 3 | . . 3 Tool/Special . | . . . Average Slot Usage (%) 95 | . 97 94 Engine 13 | . 13 14 Leg 1 | . 3 . Wheel 23 | . 24 23 Device 11 | . 12 10 Storage 14 | . 14 14 Protection 2 | . 1 3 Energy Gun 3 | . 6 . Ballistic Gun 22 | . 16 27 Special Weapon 1 | . 2 . Peak Build Rating 16 | 7 8 16 Average Rating 9 | 4 7 11 On Entrance 5 | . 7 8 Naked Turns . | . . . Heaviest Build 31 | 15 30 31 Greatest Support 32 | 26 32 32 Greatest Overweight (x) 1 | . 1 1 Average Overweight (x) . | . . . Largest Inventory Capacity 15 | 8 15 15 Average Capacity 12 | 6 9 15 Most Carried 15 | 5 11 15 Average Carried 10 | 3 7 14 Final Capacity 15 | 8 15 15 Final Carried 13 | 5 11 13 Class Distribution -------------------- 100% | Mutant Dominant Class ---------------- Mutant | -10/Materials Mutant | -10/Mines Resources | -11 -10 -10 ----------- Run | Yrd Mat Min Matter Collected 1072 | 271 622 179 Remotely . | . . . Salvage Created 1180 | 31 628 521 Parts 87 | 6 44 37 Haulers Intercepted . | . . . Recyclers Shooed 2 | . 2 . Parts Field Recycled . | . . . Retrieved Matter . | . . . Parts Self-Destructed . | . . . Prevented . | . . . Kills | -11 -10 -10 ------- Run | Yrd Mat Min Combat Hostiles Destroyed 33 | . 16 17 Guns 33 | . 16 17 Classes Destroyed 5 | 1 3 1 Tunneler 2 | 2 . . Watcher 1 | . 1 . Swarmer 10 | . 3 7 Grunt 22 | . 13 9 Assembled 1 | . . 1 Best Kill Streak 7 | 2 5 7 Combat Bots Only 7 | . 5 7 Max Kills in Single Turn 2 | 1 1 2 Gunslinging 1 | . . 1 Exploded . | . . . Melee . | . . . Uniques/NPCs Destroyed . | . . . Combat | -11 -10 -10 -------- Run | Yrd Mat Min Hostile Shots Fired 146 | . 90 56 Missed 34 | . 22 12 Hits 112 | . 68 44 Projectile 112 | . 68 44 Critical Strikes 4 | . 4 . Damage Taken 1229 | . 810 419 Core 250 | . 181 69 Absorbed by Shields . | . . . Core Remaining (%) 100 | 100 . . Volleys Fired 110 | 2 74 34 Largest 2 | 2 2 2 Hottest 100 | 40 100 70 Shots Fired 204 | 4 132 68 Gun 201 | 4 129 68 Cannon . | . . . Launcher . | . . . Special 3 | . 3 . Kinetic 179 | 4 109 66 Thermal 13 | . 11 2 Explosive . | . . . Electromagnetic 12 | . 12 . Robot Hit Streak 10 | 2 10 9 Robot Miss Streak 3 | 1 2 3 Penetration Max . | . . . Secondary Targets 6 | . 3 3 Max Gunslinging Chain 1 | . 1 1 Shots Hit Robots 141 | 2 92 47 Core Hits 69 | 2 35 32 Critical Kills . | . . . Critical Parts Destroyed . | . . . Critical Strikes . | . . . Melee Attacks . | . . . Impact . | . . . Slashing . | . . . Piercing . | . . . Sneak Attacks . | . . . Combat Hostiles . | . . . Follow-up Attacks . | . . . Damage Inflicted 1579 | 37 1131 411 Guns 1570 | 37 1122 411 Cannons . | . . . Explosions . | . . . Melee . | . . . Ramming 9 | . 9 . Kinetic 1327 | 37 905 385 Thermal 94 | . 68 26 Explosive . | . . . Electromagnetic 149 | . 149 . Impact . | . . . Slashing . | . . . Piercing . | . . . Highest Corruption . | . . . Average Corruption . | . . . Corruption Purged . | . . . Corruption Blocked . | . . . Overload Shots . | . . . Overflow Damage . | . . . Projectiles . | . . . Explosions . | . . . Melee . | . . . Knockbacks . | . . . Impact . | . . . Kinetic . | . . . Secondary . | . . . Self-Inflicted Damage 4 | . 4 . Shots . | . . . Rammed 2 | . 2 . Targets Rammed 2 | . 2 . Kicked . | . . . Crushed . | . . . Highest Temperature 118 | . 118 55 Average Temperature 21 | . 28 12 Received Heat Transfer 600 | . 438 162 Siege Activations . | . . . Martial Activations . | . . . Shielding Activations . | . . . Robots Disrupted . | . . . Combat Hostiles . | . . . Robots Corrupted . | . . . Combat Hostiles . | . . . Parts Fried . | . . . Impact Corruptions . | . . . Robots Melted . | . . . Combat Hostiles . | . . . Parts Melted . | . . . Heat Transferred 224 | . 150 74 Parts Sabotaged . | . . . Parts Stolen . | . . . Parts Stripped . | . . . Power Chain Reactions . | . . . Alert | -11 -10 -10 ------- Run | Yrd Mat Min Maximum Alert Level . | . . . Low Security (%) 100 | 100 100 100 Level 1 . | . . . Level 2 . | . . . Level 3 . | . . . Level 4 . | . . . Level 5 . | . . . High Security . | . . . Max Security . | . . . Peak Influence 170 | 5 170 124 Initial . | . . . Average 39 | . 64 21 Influence Increases 864 | 10 474 380 Destroy 0b10 Robot/C 640 | . 320 320 Destroy 0b10 Robot/NC 15 | 10 5 . Destroy Leader 112 | . 82 30 Successful Hack 21 | . 21 . Disable Machine 15 | . 15 . Destroy Structure 1 | . 1 . Lose Combat Pursuer 60 | . 30 30 Influence Decreases 740 | 10 474 256 Time Decay 650 | 10 414 226 Lost Part 90 | . 60 30 Squads Dispatched 4 | . 4 . Investigation . | . . . Extermination . | . . . Reinforcement 4 | . 4 . Assault . | . . . Garrison . | . . . Intercept . | . . . Searches Triggered . | . . . Construction Impeded . | . . . Haulers Reinforced . | . . . Active Scanning Responses . | . . . Cargo Convoy Interrupts . | . . . Stealth | -11 -10 -10 --------- Run | Yrd Mat Min Distress Signals 3 | . . 3 Communications Jammed . | . . . Distress Signals . | . . . Times Spotted 47 | . 26 21 Peak Tracking Total 6 | . 6 4 Tactical Retreats 3 | . 2 1 Traps | -11 -10 -10 ------- Run | Yrd Mat Min Traps Triggered . | . . . Indirectly . | . . . Trap Hack Attempts . | . . . Triggered . | . . . Disarmed . | . . . Reprogrammed . | . . . Reused . | . . . Traps Extracted . | . . . Installed . | . . . Triggered . | . . . Machines | -11 -10 -10 ---------- Run | Yrd Mat Min Machines Disabled 1 | . 1 . Max in Single Turn 1 | . 1 . Machines Repaired . | . . . Machines Dismantled . | . . . Machines Sabotaged . | . . . Overloaded Fab Kills . | . . . Hacking | -11 -10 -10 --------- Run | Yrd Mat Min Machines Accessed 2 | . 2 . Terminals 2 | . 2 . Fabricators . | . . . Repair Stations . | . . . Recycling Units . | . . . Scanalyzers . | . . . Garrison Access . | . . . Total Hacks 2 | . 2 . Successful 2 | . 2 . Failed . | . . . Catastrophic . | . . . Database Lockouts . | . . . Manual 1 | . 1 . Terminals 2 | . 2 . Fabricators . | . . . Repair Stations . | . . . Recycling Units . | . . . Scanalyzers . | . . . Garrison Access . | . . . Terminal Hacks 2 | . 2 . Part Schematic 1 | . 1 . Dispatch Records 1 | . 1 . Fabricator Hacks . | . . . Repair Station Hacks . | . . . Recycling Unit Hacks . | . . . Scanalyzer . | . . . Garrison Access Hacks . | . . . Unauthorized Hacks . | . . . Terminals . | . . . Fabricators . | . . . Repair Stations . | . . . Recycling Units . | . . . Scanalyzers . | . . . Garrison Access . | . . . Data Cores Recovered . | . . . Used . | . . . Hacking Detections 1 | . 1 . Full Trace Events . | . . . Feedback Events . | . . . Feedback Blocked . | . . . Robot Schematics Acquired . | . . . Robots Built . | . . . Authchips . | . . . Time . | . . . Total Robot Build Rating . | . . . Part Schematics Acquired 1 | . 1 . Parts Built . | . . . Authchips . | . . . Time . | . . . Total Part Build Rating . | . . . Parts Repaired . | . . . Time . | . . . Parts Recycled . | . . . Recycled Matter . | . . . Retrieved Matter . | . . . Retrieved Components . | . . . Parts Scanalyzed . | . . . Part Schematics Acquired . | . . . Parts Damaged . | . . . Bothacking | -11 -10 -10 ------------ Run | Yrd Mat Min Used RIF Installer . | . . . Robots Hacked . | . . . Non-combat . | . . . Combat . | . . . Robot Hacks Applied . | . . . Relay Couplers Released . | . . . Fabnet Peak Effective % . | . . . Robots Rewired . | . . . Allies Hacked . | . . . Hacks Repelled . | . . . Allies | -11 -10 -10 -------- Run | Yrd Mat Min Total Allies . | . . . Largest Group . | . . . Highest-Rated Group . | . . . Highest-Rated Ally . | . . . Total Orders . | . . . Ally Attacks . | . . . Total Damage . | . . . Kills . | . . . Allies Corrupted . | . . . Allies Melted . | . . . Intel | -11 -10 -10 ------- Run | Yrd Mat Min Active Infowar (turns) 2096 | 8 1031 1057 Sensors 832 | . 169 663 Seismic 1264 | 8 862 394 Robot Analysis Total . | . . . Derelict Logs Recovered 2 | . . 2 Drone Launches . | . . . Drone Recoveries . | . . . Exploration | -11 -10 -10 ------------- Run | Yrd Mat Min Turns Passed 2603 | 83 1141 1379 Spaces Moved 1220 | 69 712 439 Core 2 | 2 . . Treads . | . . . Legs 82 | . 82 . Wheels 1136 | 67 630 439 Hover . | . . . Flight . | . . . Fastest Speed 50 | 50 90 100 Average Speed 108 | 89 108 111 Slowest Speed 190 | 100 190 115 Overloaded Moves . | . . . Propulsion Burnouts . | . . . Robots Hopped . | . . . Potential Cave-ins . | . . . Cave-ins Triggered . | . . . Exploration Rate (%) 49 | 3 88 56 Regions Visited 2 Branch Regions 1 Pre-discovered Areas . | . . . Known Exits Taken . | . . . Unknown Exits Taken 2 | 1 1 . Scrap Searched . | . . . Spaces Dug . | . . . Terrain Destroyed 1 | . 1 . Melee . | . . . Projectile 1 | . 1 . AOE . | . . . Terrain Rammed . | . . . Walls Destroyed . | . . . Machines Disabled . | . . . Actions | -11 -10 -10 --------- Run | Yrd Mat Min Total 2295 | 82 945 1268 Wait 897 | . 121 776 Move 1218 | 68 711 439 Hop . | . . . Pick Up 27 | 5 17 5 Fast Attach 9 | 7 2 . Attach 9 | . 6 3 Detach . | . . . Swap 15 | . 4 11 Drop 8 | . 8 . Fire 110 | 2 74 34 Melee . | . . . Ram 2 | . 2 . Kick . | . . . Crush . | . . . Escape Stasis . | . . . Rewire . | . . . Trap . | . . . Miscellaneous . | . . . Route ------- -11/Scrapyard -10/Materials (discovered 5 exits: [*Mat x3] / [*Min] / [*Sub]) -10/Mines History --------- Turn | Location | Event 15 | -11/Scrapyard | Discovered new exit (range 15) 84 | -11/Scrapyard | Entered Materials 281 | -10/Materials | Core integrity fell below 50% 303 | -10/Materials | Build established: Mutant 312 | -10/Materials | Discovered new exit (range 9) 481 | -10/Materials | Discovered new exit (range 5) 793 | -10/Materials | Discovered new exit (range 10) 808 | -10/Materials | Discovered new exit (range 15) 1051 | -10/Materials | Discovered new exit (range 15) 1184 | -10/Materials | Derelicts attacked the area 1225 | -10/Materials | Entered Mines 1300 | -10/Mines | Found a hidden stash of uninstalled traps 1418 | -10/Mines | Found a damaged Exp. Sensor Array with a note attached 1420 | -10/Mines | Found Prototype Device 1421 | -10/Mines | Identified Exp. Sensor Array 1435 | -10/Mines | Learned location of 1 exit from Materials 1641 | -10/Mines | Learned Materials emergency access door positions 1659 | -10/Mines | Excavation squad dispatched 1659 | -10/Mines | A large section of the Mines collapsed 1909 | -10/Mines | Excavation squad dispatched 2159 | -10/Mines | Excavation squad dispatched 2409 | -10/Mines | Excavation squad dispatched 2505 | -10/Mines | Core integrity fell below 20% 2604 | -10/Mines | Destroyed by G-34 Mercenary with Small Laser Last Messages --------------- 02159_ ALERT: Derelict activity in mines confirmed. Dispatching additional escorted excavation squad. 02506_ G-34 Mercenary destroyed. 02514_ Acquired 24 matter. 02542_ G-34 Mercenary destroyed. 02547_ Acquired 6 matter. 02552_ Com. Wheel destroyed. 02555_ G-34 Mercenary destroyed. 02559_ T-07 Excavator sends out distress signal. 02563_ K-01 Serf sends out distress signal. 02568_ Lgt. Armor Plating destroyed. 02572_ G-34 Mercenary destroyed. 02578_ T-07 Excavator sends out distress signal. 02582_ G-34 Mercenary destroyed. 02585_ Acquired 27 matter. 02589_ G-34 Mercenary destroyed. 02597_ Switching to secondary target: G-34 Mercenary. 02599_ G-34 Mercenary destroyed. Map ----- +----------------------------------------------------+ | ?? ???????# #??????????????????? | | ???????????# #####??????????????? | | ????????????## ##?????????????? | | ????????????# #?????????????? | | ????????????# #?????????????? | | ????????????## #######????????? | | ?????????????## ### ##???????? | | ??????????????# ### #???????? | | ??????????????# ### #???????? | | ??????????????# ## ##??????? | | ??????????????# ## ##?????? | | ??????????????# ### ##????? | | ??????????????# ## #????? | | ??????????????# ### #????? | | ??????????????### #?### ##???? | | ????????????????# #???## #???? | | ???????????###### ###??## #???? | | ????????# #???## #???? | | ???????????######## #????## #???? | | ??????????????????# ####### #???? | | ????????????####??# #???? | | ???????????## ##### #???? | | ???????????# ######### =##??? | | ???????????# !########=!=##?? | | ???????????## [+%*=!=##%*%*##? | | ????????????#############@##=%[ #? | | ????????????????????????#[%= * #? | | ????????????????????????#%g*%* ##? | | ????????????????????????#!### ##?? | | ????????????????????????#t#?####??? | | ????????????????????????# #???????? | | ????????????????????????# #???????? | | ????####????????????????# #???????? | | ##### ##???????????????# #???????? | | # ##" ################# #???????? | | #** % #???????? | | ##%=*!% ##################???????? | | #[ !%| ##????????????????????????? | | ### ! ##?????????????????????????? | | ##"##??????????????????????????? | | #######???????????????????????????? | | ??????????????????????????????????? | | | | | | | | | | | | | | | | | +----------------------------------------------------+ Best States ------------- Heat Dissipation 25 Energy Generation 10 Energy Capacity 250 Matter Stores 300 Matter Capacity 300 Sight Range 16 Robot Scan Range 20 Terrain Scan Density 10 Armor Coverage 150 Evasion (%) 42 Item Schematics ----------------- Sensor Array | -10/Materials | Hacked Robot Schematics ------------------ None Fabricated ------------ Nothing Repaired ---------- Nothing Alien Tech Used ----------------- None Achievements -------------- None Challenges ------------ None Game ------ Seed LinearDataSegregator Manual? 0 Play Time 00:16:20 Cumulative 79.1 hours Start 2025.07.31 @ 14:57:39 End 2025.07.31 @ 15:41:06 Sessions 1 Manual Loads 0 Difficulty Rogue Special Mode None Game No. 103 Rogue 103 Adventurer 0 Explorer 0 Win Type - Total 0 Types 0/0/0/0/0/0/0/0/0/0 Lore% 57 Gallery% 39 Achievement% 39 Wizard Run 0 Options --------- Layout 1 ASCII 0 Keyboard 0 Movement Arrows Keybinds 0 Fullscreen 1 Font 24/Smallcaps Map View 50x35 Zoom Use 0% Tactical HUD 1 Map Filters NONE Filters NONE Steam 1 RUN: 41909e48-34f2-42f5-81e4-47c9b09fd427